[Event "Titled Tuesday Blitz July 18 Late 2023"]
[White "Duda, Jan-Krzysztof"]
[Black "Schnaider, Ilan"]
[WhiteFideId "1170546"]
[BlackFideId "169013"]
[WhiteElo "3007"]
[BlackElo "2659"]
[Result "1-0"]
[Round "4"]
[TimeControl "180+2"]
[Date "2023.07.18"]
[WhiteClock "0:00:35"]
[BlackClock "0:00:03"]
[Board "22"]

1. e4 {[%clk 0:03:00]}  c5 {[%clk 0:02:59]} 2. Nc3 {[%clk 0:02:58]}  d6 {[%clk 0:02:58]} 3. f3 {[%clk 0:02:55]}  Nf6 {[%clk 0:02:55]} 4. d4 {[%clk 0:02:55]}  cxd4 {[%clk 0:02:56]} 5. Qxd4 {[%clk 0:02:55]}  e5 {[%clk 0:02:55]} 6. Bb5+ {[%clk 0:02:44]}  Bd7 {[%clk 0:02:54]} 7. Qd3 {[%clk 0:02:33]}  a6 {[%clk 0:02:52]} 8. Bxd7+ {[%clk 0:02:31]}  Nbxd7 {[%clk 0:02:53]} 9. Be3 {[%clk 0:02:31]}  b5 {[%clk 0:02:50]} 10. O-O-O {[%clk 0:02:24]}  Be7 {[%clk 0:02:50]} 11. Nge2 {[%clk 0:02:23]}  Qa5 {[%clk 0:02:47]} 12. b3 {[%clk 0:02:11]}  h5 {[%clk 0:02:39]} 13. Kb1 {[%clk 0:02:03]}  Rc8 {[%clk 0:02:38]} 14. g3 {[%clk 0:01:47]}  Nc5 {[%clk 0:02:24]} 15. Qd2 {[%clk 0:01:46]}  Ne6 {[%clk 0:02:12]} 16. h3 {[%clk 0:01:46]}  b4 {[%clk 0:02:03]} 17. Na4 {[%clk 0:01:46]}  Nc5 {[%clk 0:01:41]} 18. Nb2 {[%clk 0:01:42]}  Qb5 {[%clk 0:01:30]} 19. Bxc5 {[%clk 0:01:29]}  Rxc5 {[%clk 0:00:48]} 20. Nd3 {[%clk 0:01:28]}  Rc8 {[%clk 0:00:48]} 21. Nxb4 {[%clk 0:01:21]}  a5 {[%clk 0:00:47]} 22. Nd3 {[%clk 0:01:15]}  d5 {[%clk 0:00:43]} 23. Nc3 {[%clk 0:01:13]}  Qc6 {[%clk 0:00:28]} 24. Nxd5 {[%clk 0:01:11]}  Nxd5 {[%clk 0:00:29]} 25. exd5 {[%clk 0:01:11]}  Qxd5 {[%clk 0:00:29]} 26. Nxe5 {[%clk 0:01:11]}  Qc5 {[%clk 0:00:14]} 27. Qd7+ {[%clk 0:01:09]}  Kf8 {[%clk 0:00:15]} 28. Qf5 {[%clk 0:01:10]}  Kg8 {[%clk 0:00:05]} 29. Qxf7+ {[%clk 0:01:09]}  Kh7 {[%clk 0:00:06]} 30. Qxh5+ {[%clk 0:01:10]}  Kg8 {[%clk 0:00:06]} 31. Qf7+ {[%clk 0:01:10]}  Kh7 {[%clk 0:00:07]} 32. Qf5+ {[%clk 0:01:09]}  Kg8 {[%clk 0:00:07]} 33. Rd5 {[%clk 0:01:00]}  Qc3 {[%clk 0:00:05]} 34. Qe6+ {[%clk 0:00:41]}  Kh7 {[%clk 0:00:04]} 35. Nc4 {[%clk 0:00:37]}  g6 {[%clk 0:00:02]} 36. Qxe7+ {[%clk 0:00:35]}  Kh6 {[%clk 0:00:01]} 37. Qg5+ {[%clk 0:00:34]}  Kg7 {[%clk 0:00:02]} 38. Rd7+ {[%clk 0:00:35]}  Kf8 {[%clk 0:00:02]} 39. Qe7+ {[%clk 0:00:35]}  Kg8 {[%clk 0:00:03]} 40. Qf7# {[%clk 0:00:35]} 1-0


[Site "https://www.chess.com"]

[Event "Titled Tuesday Blitz July 18 Late 2023"]
[White "Leon Oquendo, Jorge"]
[Black "Kamsky, Gata"]
[WhiteFideId "3514803"]
[BlackFideId "2000024"]
[WhiteElo "2618"]
[BlackElo "2989"]
[Result "1-0"]
[Round "4"]
[TimeControl "180+2"]
[Date "2023.07.18"]
[WhiteClock "0:00:07"]
[BlackClock "0:00:00"]
[Board "23"]

1. d4 {[%clk 0:02:59]}  f5 {[%clk 0:02:57]} 2. c4 {[%clk 0:02:59]}  Nf6 {[%clk 0:02:57]} 3. Nc3 {[%clk 0:02:57]}  e6 {[%clk 0:02:57]} 4. g3 {[%clk 0:02:52]}  Bb4 {[%clk 0:02:53]} 5. Qc2 {[%clk 0:02:46]}  a5 {[%clk 0:02:43]} 6. Bg2 {[%clk 0:02:45]}  O-O {[%clk 0:02:42]} 7. Nf3 {[%clk 0:02:35]}  Ne4 {[%clk 0:02:39]} 8. Bd2 {[%clk 0:02:35]}  Nxd2 {[%clk 0:02:39]} 9. Qxd2 {[%clk 0:02:36]}  b6 {[%clk 0:02:26]} 10. O-O {[%clk 0:02:27]}  Bb7 {[%clk 0:02:25]} 11. a3 {[%clk 0:02:19]}  Be7 {[%clk 0:02:23]} 12. d5 {[%clk 0:02:11]}  Na6 {[%clk 0:02:19]} 13. Rad1 {[%clk 0:02:00]}  Qe8 {[%clk 0:02:14]} 14. Rfe1 {[%clk 0:01:46]}  Nc5 {[%clk 0:02:09]} 15. e4 {[%clk 0:01:32]}  Qh5 {[%clk 0:02:05]} 16. e5 {[%clk 0:01:25]}  f4 {[%clk 0:01:59]} 17. Qe2 {[%clk 0:01:19]}  a4 {[%clk 0:01:57]} 18. Nb5 {[%clk 0:01:14]}  Rac8 {[%clk 0:01:49]} 19. Nfd4 {[%clk 0:00:58]}  Qxe2 {[%clk 0:01:28]} 20. Rxe2 {[%clk 0:00:59]}  exd5 {[%clk 0:01:22]} 21. Bxd5+ {[%clk 0:00:51]}  Bxd5 {[%clk 0:01:17]} 22. cxd5 {[%clk 0:00:52]}  fxg3 {[%clk 0:01:17]} 23. hxg3 {[%clk 0:00:51]}  Rfe8 {[%clk 0:01:12]} 24. f4 {[%clk 0:00:48]}  Bf8 {[%clk 0:01:08]} 25. Kg2 {[%clk 0:00:47]}  Red8 {[%clk 0:01:05]} 26. Nc3 {[%clk 0:00:46]}  c6 {[%clk 0:01:04]} 27. d6 {[%clk 0:00:35]}  g6 {[%clk 0:01:02]} 28. Ne4 {[%clk 0:00:34]}  Nxe4 {[%clk 0:01:02]} 29. Rxe4 {[%clk 0:00:35]}  Bg7 {[%clk 0:00:55]} 30. Nf3 {[%clk 0:00:28]}  b5 {[%clk 0:00:55]} 31. g4 {[%clk 0:00:25]}  Rf8 {[%clk 0:00:54]} 32. Kg3 {[%clk 0:00:25]}  c5 {[%clk 0:00:54]} 33. Rd5 {[%clk 0:00:24]}  Rc6 {[%clk 0:00:52]} 34. Re2 {[%clk 0:00:22]}  b4 {[%clk 0:00:49]} 35. Rc2 {[%clk 0:00:20]}  bxa3 {[%clk 0:00:35]} 36. bxa3 {[%clk 0:00:20]}  c4 {[%clk 0:00:35]} 37. Rc3 {[%clk 0:00:20]}  Rb8 {[%clk 0:00:28]} 38. Rd4 {[%clk 0:00:15]}  Rbc8 {[%clk 0:00:26]} 39. Nd2 {[%clk 0:00:14]}  g5 {[%clk 0:00:25]} 40. Rdxc4 {[%clk 0:00:13]}  gxf4+ {[%clk 0:00:25]} 41. Kxf4 {[%clk 0:00:12]}  Rf8+ {[%clk 0:00:25]} 42. Ke4 {[%clk 0:00:11]}  Ra6 {[%clk 0:00:22]} 43. Rc8 {[%clk 0:00:11]}  Ra5 {[%clk 0:00:19]} 44. Nf3 {[%clk 0:00:09]}  h6 {[%clk 0:00:17]} 45. Rxf8+ {[%clk 0:00:09]}  Kxf8 {[%clk 0:00:17]} 46. Rc8+ {[%clk 0:00:09]}  Kf7 {[%clk 0:00:18]} 47. g5 {[%clk 0:00:09]}  hxg5 {[%clk 0:00:17]} 48. Nxg5+ {[%clk 0:00:10]}  Kg6 {[%clk 0:00:17]} 49. Nf3 {[%clk 0:00:10]}  Kf7 {[%clk 0:00:17]} 50. Rd8 {[%clk 0:00:10]}  Ra7 {[%clk 0:00:17]} 51. Nd4 {[%clk 0:00:10]}  Bh6 {[%clk 0:00:16]} 52. Rc8 {[%clk 0:00:09]}  Ra5 {[%clk 0:00:14]} 53. Rc7 {[%clk 0:00:09]}  Ke8 {[%clk 0:00:14]} 54. Rc8+ {[%clk 0:00:08]}  Kf7 {[%clk 0:00:15]} 55. Rc7 {[%clk 0:00:09]}  Ke8 {[%clk 0:00:14]} 56. e6 {[%clk 0:00:09]}  dxe6 {[%clk 0:00:00]} 57. Nxe6 {[%clk 0:00:07]} 1-0


[Site "https://www.chess.com"]

[Event "Titled Tuesday Blitz July 18 Late 2023"]
[White "Medarde Santiago, Luis Marcos"]
[Black "Kramnik, Vladimir"]
[WhiteFideId "2263076"]
[BlackFideId "4101588"]
[WhiteElo "2613"]
[BlackElo "2978"]
[Result "0-1"]
[Round "4"]
[TimeControl "180+2"]
[Date "2023.07.18"]
[WhiteClock "0:01:00"]
[BlackClock "0:00:20"]
[Board "24"]

1. e4 {[%clk 0:03:00]}  c5 {[%clk 0:02:58]} 2. Nf3 {[%clk 0:03:00]}  e6 {[%clk 0:02:59]} 3. d4 {[%clk 0:02:59]}  cxd4 {[%clk 0:02:59]} 4. Nxd4 {[%clk 0:03:00]}  Nf6 {[%clk 0:02:58]} 5. Nc3 {[%clk 0:03:00]}  Nc6 {[%clk 0:02:59]} 6. Nxc6 {[%clk 0:03:01]}  bxc6 {[%clk 0:02:58]} 7. e5 {[%clk 0:03:01]}  Nd5 {[%clk 0:02:58]} 8. Ne4 {[%clk 0:03:02]}  Qc7 {[%clk 0:02:58]} 9. f4 {[%clk 0:03:02]}  a5 {[%clk 0:02:58]} 10. c4 {[%clk 0:02:41]}  Bb4+ {[%clk 0:02:57]} 11. Ke2 {[%clk 0:02:38]}  O-O {[%clk 0:02:57]} 12. a3 {[%clk 0:02:36]}  Be7 {[%clk 0:02:56]} 13. cxd5 {[%clk 0:02:22]}  cxd5 {[%clk 0:02:56]} 14. Nd6 {[%clk 0:02:15]}  f6 {[%clk 0:02:53]} 15. Nxc8 {[%clk 0:02:05]}  Raxc8 {[%clk 0:02:52]} 16. exf6 {[%clk 0:02:06]}  Bxf6 {[%clk 0:02:51]} 17. Rb1 {[%clk 0:02:07]}  Qb7 {[%clk 0:02:40]} 18. Ke1 {[%clk 0:02:00]}  e5 {[%clk 0:02:06]} 19. Bd3 {[%clk 0:01:55]}  e4 {[%clk 0:01:57]} 20. Bc2 {[%clk 0:01:55]}  d4 {[%clk 0:01:54]} 21. Rf1 {[%clk 0:01:51]}  d3 {[%clk 0:01:48]} 22. Bb3+ {[%clk 0:01:52]}  Kh8 {[%clk 0:01:47]} 23. Kf2 {[%clk 0:01:52]}  Bd4+ {[%clk 0:01:43]} 24. Kg3 {[%clk 0:01:52]}  Qa6 {[%clk 0:01:30]} 25. h3 {[%clk 0:01:36]}  e3 {[%clk 0:01:29]} 26. Qf3 {[%clk 0:01:36]}  d2 {[%clk 0:01:07]} 27. Rh1 {[%clk 0:01:37]}  Qg6+ {[%clk 0:00:55]} 28. Kh2 {[%clk 0:01:33]}  Qxb1 {[%clk 0:00:53]} 29. Bxd2 {[%clk 0:01:33]}  Qd3 {[%clk 0:00:48]} 30. Bc3 {[%clk 0:01:33]}  Bxc3 {[%clk 0:00:46]} 31. bxc3 {[%clk 0:01:34]}  Qxc3 {[%clk 0:00:41]} 32. Bd5 {[%clk 0:01:33]}  Qf6 {[%clk 0:00:33]} 33. Qxe3 {[%clk 0:01:31]}  Qxf4+ {[%clk 0:00:32]} 34. Qxf4 {[%clk 0:01:32]}  Rxf4 {[%clk 0:00:33]} 35. Re1 {[%clk 0:01:32]}  Rd4 {[%clk 0:00:32]} 36. Re5 {[%clk 0:01:27]}  h6 {[%clk 0:00:31]} 37. Bf3 {[%clk 0:01:24]}  a4 {[%clk 0:00:30]} 38. Bg4 {[%clk 0:01:16]}  Rf8 {[%clk 0:00:29]} 39. Re7 {[%clk 0:01:14]}  Rd8 {[%clk 0:00:29]} 40. Kg3 {[%clk 0:01:12]}  Rd3+ {[%clk 0:00:28]} 41. Kh4 {[%clk 0:01:11]}  Rxa3 {[%clk 0:00:28]} 42. Kh5 {[%clk 0:01:12]}  Rg3 {[%clk 0:00:28]} 43. Kg6 {[%clk 0:01:12]}  a3 {[%clk 0:00:27]} 44. Re2 {[%clk 0:01:05]}  Ra8 {[%clk 0:00:25]} 45. Ra2 {[%clk 0:01:05]}  Ra6+ {[%clk 0:00:25]} 46. Kh5 {[%clk 0:01:03]}  Kh7 {[%clk 0:00:23]} 47. Bf3 {[%clk 0:01:03]}  Ra4 {[%clk 0:00:20]} 48. Bd1 {[%clk 0:01:00]}  g6# {[%clk 0:00:20]} 0-1


[Site "https://www.chess.com"]

[Event "Titled Tuesday Blitz July 18 Late 2023"]
[White "Besedes, Danilo"]
[Black "Perez Ponsa, Federico"]
[WhiteFideId "946796"]
[BlackFideId "117927"]
[WhiteElo "2535"]
[BlackElo "2824"]
[Result "0-1"]
[Round "4"]
[TimeControl "180+2"]
[Date "2023.07.18"]
[WhiteClock "0:00:09"]
[BlackClock "0:01:05"]
[Board "27"]

1. b3 {[%clk 0:02:59]}  e5 {[%clk 0:02:38]} 2. Bb2 {[%clk 0:03:00]}  Nc6 {[%clk 0:02:35]} 3. e3 {[%clk 0:03:00]}  Nf6 {[%clk 0:02:35]} 4. Bb5 {[%clk 0:03:00]}  Bd6 {[%clk 0:02:34]} 5. Ne2 {[%clk 0:03:00]}  O-O {[%clk 0:02:34]} 6. Nbc3 {[%clk 0:02:57]}  Re8 {[%clk 0:02:34]} 7. Ng3 {[%clk 0:02:56]}  Bf8 {[%clk 0:02:33]} 8. O-O {[%clk 0:02:53]}  a6 {[%clk 0:02:31]} 9. Bxc6 {[%clk 0:02:53]}  bxc6 {[%clk 0:02:29]} 10. Nce2 {[%clk 0:02:54]}  d5 {[%clk 0:02:29]} 11. f4 {[%clk 0:02:50]}  e4 {[%clk 0:02:28]} 12. f5 {[%clk 0:02:32]}  Bd6 {[%clk 0:02:21]} 13. Nf4 {[%clk 0:02:30]}  Be5 {[%clk 0:02:19]} 14. Qc1 {[%clk 0:02:24]}  d4 {[%clk 0:02:17]} 15. exd4 {[%clk 0:01:37]}  Bxd4+ {[%clk 0:02:15]} 16. Kh1 {[%clk 0:01:36]}  c5 {[%clk 0:02:07]} 17. Bxd4 {[%clk 0:01:32]}  cxd4 {[%clk 0:02:07]} 18. Qe1 {[%clk 0:01:27]}  Bb7 {[%clk 0:02:06]} 19. Nfh5 {[%clk 0:01:23]}  Nxh5 {[%clk 0:02:05]} 20. Nxh5 {[%clk 0:01:23]}  Qg5 {[%clk 0:02:06]} 21. Ng3 {[%clk 0:01:18]}  e3 {[%clk 0:02:04]} 22. f6 {[%clk 0:01:13]}  g6 {[%clk 0:01:56]} 23. dxe3 {[%clk 0:01:06]}  dxe3 {[%clk 0:01:55]} 24. Qe2 {[%clk 0:01:02]}  h5 {[%clk 0:01:55]} 25. Rf3 {[%clk 0:00:30]}  Rad8 {[%clk 0:01:42]} 26. Re1 {[%clk 0:00:27]}  Bxf3 {[%clk 0:01:29]} 27. Qxf3 {[%clk 0:00:28]}  Rd4 {[%clk 0:01:06]} 28. h3 {[%clk 0:00:19]}  h4 {[%clk 0:01:05]} 29. Ne2 {[%clk 0:00:18]}  Rd6 {[%clk 0:01:06]} 30. Rf1 {[%clk 0:00:17]}  Ree6 {[%clk 0:01:06]} 31. Qa8+ {[%clk 0:00:16]}  Kh7 {[%clk 0:01:06]} 32. Rf4 {[%clk 0:00:12]}  Rxf6 {[%clk 0:01:04]} 33. Rg4 {[%clk 0:00:13]}  Rf1+ {[%clk 0:01:04]} 34. Kh2 {[%clk 0:00:13]}  Qe5+ {[%clk 0:01:04]} 35. g3 {[%clk 0:00:09]}  Rf2+ {[%clk 0:01:05]} 0-1


[Site "https://www.chess.com"]

[Event "Titled Tuesday Blitz July 18 Late 2023"]
[White "Llorente Zaro, Alfonso"]
[Black "Bagrationi, Alexander"]
[WhiteFideId "2254131"]
[BlackFideId "14104954"]
[WhiteElo "2743"]
[BlackElo "2545"]
[Result "1-0"]
[Round "4"]
[TimeControl "180+2"]
[Date "2023.07.18"]
[WhiteClock "0:00:03"]
[BlackClock "0:00:04"]
[Board "28"]

1. e4 {[%clk 0:02:46]}  c5 {[%clk 0:03:00]} 2. Nf3 {[%clk 0:02:45]}  Nc6 {[%clk 0:03:00]} 3. Bb5 {[%clk 0:02:41]}  Nf6 {[%clk 0:03:00]} 4. Bxc6 {[%clk 0:02:39]}  dxc6 {[%clk 0:02:59]} 5. d3 {[%clk 0:02:39]}  g6 {[%clk 0:03:00]} 6. h3 {[%clk 0:02:38]}  Bg7 {[%clk 0:03:00]} 7. Nc3 {[%clk 0:02:38]}  O-O {[%clk 0:03:01]} 8. Bf4 {[%clk 0:02:37]}  Ne8 {[%clk 0:02:57]} 9. Qd2 {[%clk 0:02:36]}  Nc7 {[%clk 0:02:55]} 10. Bh6 {[%clk 0:02:35]}  Ne6 {[%clk 0:02:51]} 11. h4 {[%clk 0:02:34]}  Nd4 {[%clk 0:02:50]} 12. Nxd4 {[%clk 0:02:34]}  cxd4 {[%clk 0:02:49]} 13. Ne2 {[%clk 0:02:35]}  Bxh6 {[%clk 0:02:14]} 14. Qxh6 {[%clk 0:02:35]}  Qa5+ {[%clk 0:02:15]} 15. Kd1 {[%clk 0:01:59]}  Rd8 {[%clk 0:02:13]} 16. a3 {[%clk 0:01:44]}  Qe5 {[%clk 0:02:12]} 17. Qg5 {[%clk 0:01:36]}  f6 {[%clk 0:02:00]} 18. Qxe5 {[%clk 0:01:28]}  fxe5 {[%clk 0:02:01]} 19. Kd2 {[%clk 0:01:26]}  h5 {[%clk 0:01:59]} 20. c4 {[%clk 0:01:17]}  dxc3+ {[%clk 0:01:53]} 21. Kxc3 {[%clk 0:01:18]}  Be6 {[%clk 0:01:50]} 22. Ng3 {[%clk 0:01:10]}  Rd7 {[%clk 0:01:48]} 23. Rhd1 {[%clk 0:01:10]}  Rf8 {[%clk 0:01:45]} 24. f3 {[%clk 0:01:10]}  Rf4 {[%clk 0:01:46]} 25. Rh1 {[%clk 0:01:10]}  c5 {[%clk 0:01:42]} 26. Rad1 {[%clk 0:01:10]}  b6 {[%clk 0:01:39]} 27. Nf1 {[%clk 0:01:10]}  c4 {[%clk 0:01:35]} 28. Ne3 {[%clk 0:01:07]}  cxd3 {[%clk 0:01:35]} 29. Rxd3 {[%clk 0:01:08]}  Rxd3+ {[%clk 0:01:32]} 30. Kxd3 {[%clk 0:01:09]}  Kg7 {[%clk 0:01:30]} 31. Ke2 {[%clk 0:01:09]}  Rf8 {[%clk 0:01:26]} 32. Rc1 {[%clk 0:01:03]}  Rc8 {[%clk 0:01:26]} 33. Rxc8 {[%clk 0:01:00]}  Bxc8 {[%clk 0:01:27]} 34. Kd2 {[%clk 0:00:54]}  Kf6 {[%clk 0:01:24]} 35. Nd5+ {[%clk 0:00:53]}  Ke6 {[%clk 0:01:24]} 36. Ke3 {[%clk 0:00:53]}  Kd6 {[%clk 0:01:22]} 37. b4 {[%clk 0:00:47]}  Be6 {[%clk 0:01:20]} 38. Nc3 {[%clk 0:00:47]}  Bc4 {[%clk 0:01:20]} 39. g3 {[%clk 0:00:47]}  Ke6 {[%clk 0:01:19]} 40. Nb1 {[%clk 0:00:41]}  Kd6 {[%clk 0:01:17]} 41. Nd2 {[%clk 0:00:40]}  Be6 {[%clk 0:01:17]} 42. Kd3 {[%clk 0:00:37]}  Kc6 {[%clk 0:01:15]} 43. Kc3 {[%clk 0:00:36]}  Kb5 {[%clk 0:01:11]} 44. Nf1 {[%clk 0:00:32]}  Ka4 {[%clk 0:01:06]} 45. Kb2 {[%clk 0:00:32]}  Bc4 {[%clk 0:01:03]} 46. Ne3 {[%clk 0:00:31]}  Be6 {[%clk 0:01:03]} 47. Nd5 {[%clk 0:00:17]}  Bxd5 {[%clk 0:00:58]} 48. exd5 {[%clk 0:00:17]}  a5 {[%clk 0:00:58]} 49. bxa5 {[%clk 0:00:17]}  bxa5 {[%clk 0:00:59]} 50. Ka2 {[%clk 0:00:14]}  Kb5 {[%clk 0:00:57]} 51. Kb3 {[%clk 0:00:14]}  a4+ {[%clk 0:00:49]} 52. Kc3 {[%clk 0:00:15]}  Kc5 {[%clk 0:00:49]} 53. g4 {[%clk 0:00:15]}  Kxd5 {[%clk 0:00:31]} 54. Kd3 {[%clk 0:00:13]}  e4+ {[%clk 0:00:20]} 55. fxe4+ {[%clk 0:00:13]}  Ke5 {[%clk 0:00:21]} 56. gxh5 {[%clk 0:00:13]}  gxh5 {[%clk 0:00:21]} 57. Ke3 {[%clk 0:00:13]}  e6 {[%clk 0:00:21]} 58. Kf3 {[%clk 0:00:14]}  Kd4 {[%clk 0:00:21]} 59. Kf4 {[%clk 0:00:14]}  Kc4 {[%clk 0:00:20]} 60. Ke5 {[%clk 0:00:05]}  Kb3 {[%clk 0:00:21]} 61. Kxe6 {[%clk 0:00:06]}  Kxa3 {[%clk 0:00:21]} 62. Kf7 {[%clk 0:00:04]}  Kb4 {[%clk 0:00:19]} 63. e5 {[%clk 0:00:05]}  a3 {[%clk 0:00:20]} 64. e6 {[%clk 0:00:06]}  a2 {[%clk 0:00:20]} 65. e7 {[%clk 0:00:07]}  a1=Q {[%clk 0:00:21]} 66. e8=Q {[%clk 0:00:08]}  Qf1+ {[%clk 0:00:14]} 67. Kg6 {[%clk 0:00:07]}  Qf3 {[%clk 0:00:13]} 68. Qe7+ {[%clk 0:00:03]}  Kb5 {[%clk 0:00:07]} 69. Qg5+ {[%clk 0:00:03]}  Kc6 {[%clk 0:00:07]} 70. Qxh5 {[%clk 0:00:02]}  Qg3+ {[%clk 0:00:07]} 71. Qg5 {[%clk 0:00:02]}  Qd3+ {[%clk 0:00:07]} 72. Qf5 {[%clk 0:00:02]}  Qg3+ {[%clk 0:00:07]} 73. Qg5 {[%clk 0:00:02]}  Qd3+ {[%clk 0:00:07]} 74. Kg7 {[%clk 0:00:03]}  Kd7 {[%clk 0:00:06]} 75. h5 {[%clk 0:00:02]}  Qd4+ {[%clk 0:00:06]} 76. Qf6 {[%clk 0:00:02]}  Qg4+ {[%clk 0:00:06]} 77. Qg6 {[%clk 0:00:02]}  Qd4+ {[%clk 0:00:07]} 78. Kg8 {[%clk 0:00:03]}  Qg4 {[%clk 0:00:05]} 79. Qxg4+ {[%clk 0:00:02]}  Ke7 {[%clk 0:00:04]} 80. h6 {[%clk 0:00:03]} 1-0


[Site "https://www.chess.com"]

[Event "Titled Tuesday Blitz July 18 Late 2023"]
[White "Mattheii"]
[Black "Meshkovs, Nikita"]
[BlackFideId "11602740"]
[WhiteElo "2527"]
[BlackElo "2742"]
[Result "0-1"]
[Round "4"]
[TimeControl "180+2"]
[Date "2023.07.18"]
[WhiteClock "0:00:28"]
[BlackClock "0:00:52"]
[Board "29"]

1. d4 {[%clk 0:03:00]}  Nf6 {[%clk 0:02:59]} 2. Nf3 {[%clk 0:02:59]}  e6 {[%clk 0:02:59]} 3. Bf4 {[%clk 0:02:58]}  d5 {[%clk 0:02:58]} 4. e3 {[%clk 0:02:58]}  c5 {[%clk 0:02:59]} 5. c3 {[%clk 0:02:58]}  Nc6 {[%clk 0:02:59]} 6. Nbd2 {[%clk 0:02:58]}  Nh5 {[%clk 0:03:00]} 7. dxc5 {[%clk 0:02:46]}  Nxf4 {[%clk 0:02:58]} 8. exf4 {[%clk 0:02:47]}  Bxc5 {[%clk 0:02:59]} 9. Bd3 {[%clk 0:02:48]}  Qb6 {[%clk 0:02:50]} 10. O-O {[%clk 0:02:41]}  Qxb2 {[%clk 0:02:48]} 11. c4 {[%clk 0:02:18]}  Be7 {[%clk 0:02:30]} 12. cxd5 {[%clk 0:02:07]}  exd5 {[%clk 0:02:31]} 13. Re1 {[%clk 0:02:01]}  O-O {[%clk 0:02:27]} 14. Rc1 {[%clk 0:01:47]}  Bf6 {[%clk 0:02:24]} 15. Ng5 {[%clk 0:01:41]}  g6 {[%clk 0:02:02]} 16. h4 {[%clk 0:01:15]}  Qd4 {[%clk 0:01:56]} 17. Ndf3 {[%clk 0:00:59]}  Qxf4 {[%clk 0:01:55]} 18. g3 {[%clk 0:00:58]}  Qd6 {[%clk 0:01:52]} 19. h5 {[%clk 0:00:57]}  Bg4 {[%clk 0:01:50]} 20. hxg6 {[%clk 0:00:56]}  Bxg5 {[%clk 0:01:45]} 21. gxh7+ {[%clk 0:00:50]}  Kh8 {[%clk 0:01:43]} 22. Rb1 {[%clk 0:00:48]}  Nd4 {[%clk 0:01:33]} 23. Be2 {[%clk 0:00:40]}  Nxe2+ {[%clk 0:01:32]} 24. Qxe2 {[%clk 0:00:41]}  Bf6 {[%clk 0:01:21]} 25. Rxb7 {[%clk 0:00:39]}  d4 {[%clk 0:01:07]} 26. Qd3 {[%clk 0:00:29]}  Qd5 {[%clk 0:01:02]} 27. Rb3 {[%clk 0:00:26]}  Bxf3 {[%clk 0:01:02]} 28. Qxf3 {[%clk 0:00:27]}  Qxf3 {[%clk 0:01:03]} 29. Rxf3 {[%clk 0:00:28]}  Bg7 {[%clk 0:01:03]} 30. Rd3 {[%clk 0:00:27]}  Rfe8 {[%clk 0:01:03]} 31. Rb1 {[%clk 0:00:27]}  Re7 {[%clk 0:01:02]} 32. a4 {[%clk 0:00:26]}  Kxh7 {[%clk 0:01:02]} 33. a5 {[%clk 0:00:27]}  Rd8 {[%clk 0:00:56]} 34. Kg2 {[%clk 0:00:27]}  Rd5 {[%clk 0:00:54]} 35. a6 {[%clk 0:00:28]}  Rd6 {[%clk 0:00:54]} 36. Rb7 {[%clk 0:00:28]}  Rxb7 {[%clk 0:00:53]} 37. axb7 {[%clk 0:00:28]}  Rb6 {[%clk 0:00:52]} 38. Rxd4 {[%clk 0:00:28]} 0-1


[Site "https://www.chess.com"]

[Event "Titled Tuesday Blitz July 18 Late 2023"]
[White "Seyhanoglu, Deniz"]
[Black "Haydon, David L"]
[WhiteFideId "6302572"]
[BlackFideId "415405"]
[WhiteElo "2433"]
[BlackElo "2706"]
[Result "0-1"]
[Round "4"]
[TimeControl "180+2"]
[Date "2023.07.18"]
[WhiteClock "0:00:02"]
[BlackClock "0:01:39"]
[Board "30"]

1. e4 {[%clk 0:03:00]}  c6 {[%clk 0:03:00]} 2. d4 {[%clk 0:03:00]}  d5 {[%clk 0:03:00]} 3. exd5 {[%clk 0:03:01]}  cxd5 {[%clk 0:03:00]} 4. c4 {[%clk 0:03:02]}  Nf6 {[%clk 0:03:01]} 5. Nc3 {[%clk 0:03:02]}  e6 {[%clk 0:03:00]} 6. Nf3 {[%clk 0:03:01]}  Be7 {[%clk 0:03:00]} 7. Bg5 {[%clk 0:03:00]}  Nc6 {[%clk 0:03:00]} 8. c5 {[%clk 0:03:00]}  Ne4 {[%clk 0:03:00]} 9. Bxe7 {[%clk 0:02:59]}  Qxe7 {[%clk 0:03:00]} 10. Rc1 {[%clk 0:02:52]}  O-O {[%clk 0:02:59]} 11. Bd3 {[%clk 0:02:46]}  f5 {[%clk 0:02:58]} 12. O-O {[%clk 0:02:43]}  Bd7 {[%clk 0:02:57]} 13. a3 {[%clk 0:02:42]}  Be8 {[%clk 0:02:51]} 14. b4 {[%clk 0:02:37]}  Bh5 {[%clk 0:02:50]} 15. Be2 {[%clk 0:02:36]}  Qf6 {[%clk 0:02:50]} 16. b5 {[%clk 0:02:29]}  Ne7 {[%clk 0:02:40]} 17. Ne5 {[%clk 0:02:27]}  Bxe2 {[%clk 0:02:39]} 18. Qxe2 {[%clk 0:02:28]}  Rfd8 {[%clk 0:02:36]} 19. f3 {[%clk 0:02:22]}  Ng5 {[%clk 0:02:33]} 20. a4 {[%clk 0:02:11]}  Rac8 {[%clk 0:02:30]} 21. Rfe1 {[%clk 0:02:04]}  Ng6 {[%clk 0:02:24]} 22. Nxg6 {[%clk 0:01:54]}  Qxd4+ {[%clk 0:02:18]} 23. Kh1 {[%clk 0:01:43]}  hxg6 {[%clk 0:02:17]} 24. Red1 {[%clk 0:01:23]}  Qf6 {[%clk 0:02:15]} 25. f4 {[%clk 0:00:57]}  Ne4 {[%clk 0:02:13]} 26. Nxe4 {[%clk 0:00:56]}  fxe4 {[%clk 0:02:10]} 27. g3 {[%clk 0:00:47]}  e5 {[%clk 0:02:01]} 28. fxe5 {[%clk 0:00:35]}  Qxe5 {[%clk 0:02:00]} 29. c6 {[%clk 0:00:36]}  bxc6 {[%clk 0:02:00]} 30. bxc6 {[%clk 0:00:36]}  d4 {[%clk 0:01:57]} 31. c7 {[%clk 0:00:28]}  Rd7 {[%clk 0:01:52]} 32. Qb5 {[%clk 0:00:17]}  Qxb5 {[%clk 0:01:46]} 33. axb5 {[%clk 0:00:18]}  d3 {[%clk 0:01:45]} 34. Rc4 {[%clk 0:00:16]}  e3 {[%clk 0:01:42]} 35. Re4 {[%clk 0:00:16]}  e2 {[%clk 0:01:41]} 36. Rd2 {[%clk 0:00:09]}  Rcxc7 {[%clk 0:01:41]} 37. Kg2 {[%clk 0:00:10]}  Rc1 {[%clk 0:01:41]} 38. Kf2 {[%clk 0:00:02]}  Rf1+ {[%clk 0:01:39]} 0-1


[Site "https://www.chess.com"]